fUSD/lending_fUSD_20240118
["ID","MTS","AMOUNT","RATE_DAILY","PERIOD"]
[312091947,1705611039579,-150.0,0.00022999,2]
[312091949,1705611039588,-150.0,0.00022999,2]
[312091951,1705611039597,-150.0,0.00022999,2]
[312091953,1705611039605,-291.97587588,0.00022999,2]
[312091955,1705611039615,-3197.35514256,0.00023,2]
[312091957,1705611039623,-187932.14167753,0.00023,3]
[312091960,1705611039647,-268.42107544,0.00023,3]
[312091965,1705611039685,-1405408.90011431,0.00023,3]
[312091967,1705611039695,-4416096.15442113,0.00023,2]
[312091969,1705611039706,-82155.3204301,0.00023,2]
[312091972,1705611039717,-2349.81200394,0.00023,2]
[312091975,1705611039735,-5553.84534469,0.00023,2]
[312091977,1705611039750,-384.5582594,0.00023,2]
[312091981,1705611039774,-5890.93552204,0.00023,2]
[312092078,1705611040705,-799.75135,0.00023,2]
[312092086,1705611040766,-1024.3,0.00023,2]
[312092096,1705611040828,-345.59887772,0.00023,2]
[312092103,1705611040888,-16310.09056,0.00023,2]
[312092106,1705611040899,-796.0114995,0.00023,2]
[312092147,1705611041570,-284.91706472,0.00023,2]
[312092202,1705611042960,-5984.818,0.00023,2]
[312092214,1705611043031,-4118.408,0.00023,2]
[312092217,1705611043043,-1914.15008364,0.00023,2]
[312092221,1705611043055,-48248.020175,0.00023,2]
[312092231,1705611043148,-346.45500442,0.00023,2]
[312092233,1705611043160,-941.2500002,0.00023,2]
[312092239,1705611043210,-376.94349572,0.00023,2]
[312092242,1705611043277,-4086.55679999,0.00023,2]
[312092250,1705611046053,-14460.09869723,0.00022999,2]
[312092251,1705611046174,-719.46847836,0.00022999,2]
[312092252,1705611046202,-1584.13512148,0.00022999,2]
[312092253,1705611046215,-2126.50751552,0.00023,2]
[312092254,1705611046228,-2274.78915779,0.00023,2]
[312092255,1705611046239,-7075.90568009,0.00023,2]
[312092256,1705611046310,-1226.73761464,0.00023,2]
[312092257,1705611046355,-1184.99999998,0.00023,2]
[312092258,1705611046367,-574.97928838,0.00023,2]
[312092259,1705611046379,-411.64164,0.00023,2]
[312092269,1705611052337,250.89843054,0.00020753,2]
[312092270,1705611141634,616.97420109,0.00020468,2]
[312092271,1705611154471,204.0,0.00020725,2]
[312092272,1705611238224,400.0,0.0002,2]
[312092274,1705611275650,495.61,0.00019579,2]
[312092276,1705611323480,177.6,0.00021588,2]
[312092277,1705611350325,607.73,0.00021386,2]
[312092278,1705611365525,255.61,0.0002142,2]
[312092279,1705611366002,6031.39,0.0002142,2]
[312092281,1705611378624,23900.0,0.0002142,2]
[312092282,1705611423015,500.0,0.00021419,2]
[312092283,1705611438202,431.61,0.00021386,2]
[312092284,1705611439300,10346.8,0.00021386,2]
[312092285,1705611441350,759.00584575,0.00021385,2]
[312092293,1705611513955,204.0,0.00021432,2]
[312092298,1705611520210,14120.57,0.00021414,2]
[312092299,1705611523169,1852.42,0.00021389,2]
[312092300,1705611536496,200.0,0.00021389,2]
[312092301,1705611540995,327.8738,0.00021566,2]
[312092302,1705611581847,303.37,0.00021356,2]
[312092303,1705611582040,303.37,0.00021525,2]
[312092304,1705611607576,184.12,0.00021347,2]
[312092305,1705611612389,2000.0,0.0002133,2]
[312092309,1705611751916,250.0,0.00021348,2]
[312092310,1705611774653,167.1,0.00021304,2]
[312092311,1705611792987,513.81,0.00021297,2]
[312092312,1705611799685,176.74,0.00021297,2]
[312092313,1705611827344,260.45,0.00021331,2]
[312092314,1705611835758,220.23175516,0.00021297,2]
[312092315,1705611836383,153.14,0.00021482,2]
[312092316,1705611836795,153.14,0.00021562,2]
[312092317,1705611838615,23900.0,0.00021322,2]
[312092318,1705611844366,425.61985343,0.00020468,2]
[312092319,1705611847325,155.24194201,0.00020698,2]
[312092322,1705611853731,207.05635875,0.00021297,2]
[312092323,1705611871751,3329.35169132,0.00021601,2]
[312092324,1705611873822,215.56054804,0.00021601,2]
[312092325,1705611874576,1203.65085953,0.00021601,2]
[312092326,1705611875292,155.0,0.00021601,2]
[312092327,1705611876266,155.0,0.00021601,2]
[312092328,1705611877509,443.32,0.00021277,2]
[312092329,1705611879011,3859.70716788,0.00021601,2]
[312092330,1705611879658,1416.95405969,0.00021601,2]
[312092331,1705611880463,2605.00004126,0.00021601,2]
[312092332,1705611880495,2139.47732276,0.00021601,2]
[312092333,1705611881085,196.95281856,0.00021601,2]
[312092334,1705611881298,1256.24889353,0.00021601,2]
[312092335,1705611882677,156.98434856,0.00021506,2]
[312092336,1705611885468,270.03425655,0.00021601,2]
[312092337,1705611886106,285.40909205,0.00021601,2]
[312092338,1705611886939,3190.67771766,0.00021601,2]
[312092339,1705611889308,7102.09,0.00021312,2]
[312092340,1705611892100,2620.20267058,0.00021601,2]
[312092341,1705611897045,4272.85688263,0.00021601,2]
[312092342,1705611902761,2319.9241295,0.000216,2]
[312092343,1705611904316,481.2212,0.00021576,2]
[312092344,1705611907771,155.0,0.00021601,2]
[312092345,1705611909882,494.66439797,0.00021601,2]
[312092346,1705611912790,517.12,0.00019434,2]
[312092347,1705611914107,155.0,0.00021601,2]
[312092354,1705611918953,2705.0,0.00021331,2]
[312092355,1705611926022,155.0,0.00021601,2]
[312092356,1705611950336,215.56054804,0.00021601,2]
[312092357,1705611952771,155.0,0.00021601,2]
[312092358,1705611952983,2139.47732276,0.00021601,2]
[312092359,1705611954963,2605.00004126,0.00021601,2]
[312092360,1705611956877,1203.65085953,0.00021601,2]
[312092361,1705611959970,270.03425655,0.00021601,2]
[312092362,1705611960306,1416.95405969,0.00021601,2]
[312092363,1705611964660,285.40909205,0.00021601,2]
[312092364,1705611976215,500.0,0.00021355,2]
[312092365,1705611980644,155.0,0.00021601,2]
[312092366,1705611981574,4272.85688263,0.00021601,2]
[312092371,1705611985363,43004.73531426,0.00021601,2]
[312092372,1705611994710,209.00334414,0.00021331,2]
[312092373,1705611996417,155.0,0.00021601,2]
[312092374,1705611997327,696.71005221,0.00021601,2]
[312092375,1705612008142,155.0,0.00021355,2]
[312092376,1705612008357,155.0,0.00021355,2]
[312092377,1705612010130,245.13099503,0.00020698,2]
[312092378,1705612010469,200.0,0.00021321,2]
[312092379,1705612011919,157.39532955,0.00021355,2]
[312092380,1705612012559,155.0,0.00021355,2]
[312092381,1705612013545,155.26494261,0.00021355,2]
[312092382,1705612015626,155.0,0.00021355,2]
[312092383,1705612016469,161.78624904,0.00021601,2]
[312092384,1705612016499,157.03308775,0.00021355,2]
[312092385,1705612017543,234.90330055,0.00021355,2]
[312092386,1705612017645,155.0,0.00021355,2]
[312092387,1705612018005,155.0,0.0002,2]
[312092388,1705612019093,155.0,0.00021355,2]
[312092389,1705612019755,220.31493018,0.00021355,2]
[312092390,1705612020239,155.0,0.00021355,2]
[312092391,1705612020903,155.4450733,0.00021355,2]
[312092392,1705612022397,155.0,0.00021355,2]
[312092393,1705612026395,155.0,0.00021355,2]
[312092394,1705612026886,215.56054804,0.00021601,2]
[312092395,1705612028140,155.1479505,0.00021355,2]
[312092396,1705612030502,270.03425655,0.00021601,2]
[312092397,1705612033602,197.97478194,0.00021355,2]
[312092398,1705612034541,224.71191091,0.00021355,2]
[312092399,1705612034572,162.2165362,0.00021601,2]
[312092400,1705612037558,155.0,0.00021355,2]
[312092401,1705612039640,155.0,0.00021355,2]
[312092402,1705612040345,245.57,0.00021279,2]
[312092403,1705612041548,234.90330055,0.00021601,2]
[312092404,1705612041764,220.31493018,0.00021355,2]
[312092405,1705612042041,233.20989543,0.00021354,2]
[312092406,1705612042218,218.3703028,0.00021355,2]
[312092407,1705612042659,1416.95405969,0.00021601,2]
[312092408,1705612044355,155.0,0.00021355,2]
[312092409,1705612044857,234.42493184,0.00021601,2]
[312092410,1705612046039,2000.0,0.00021279,2]
[312092411,1705612046073,155.0,0.00021601,2]
[312092412,1705612048389,155.0,0.00021355,2]
[312092413,1705612048683,533.37470322,0.00021601,2]
[312092414,1705612051644,169.00136356,0.00021515,2]
[312092415,1705612051846,477.28,0.0002128,2]
[312092416,1705612057086,179.9034816,0.00021601,2]
[312092417,1705612059778,219.51508683,0.00021601,2]
[312092418,1705612061069,43004.73531426,0.00021601,2]
[312092419,1705612061585,196.75901238,0.00021601,2]
[312092420,1705612063030,215.11040998,0.00021601,2]
[312092421,1705612063538,234.90330055,0.00021601,2]
[312092422,1705612064370,158.80709241,0.00021601,2]
[312092423,1705612065629,202.69024443,0.00021601,2]
[312092424,1705612069841,228.31585659,0.00021601,2]
[312092425,1705612070679,533.37470322,0.00021601,2]
[312092426,1705612070744,174.22213043,0.00021601,2]
[312092427,1705612071462,203.29975543,0.00021601,2]
[312092428,1705612071706,217.97798028,0.00021601,2]
[312092429,1705612074434,190.90927065,0.00021601,2]
[312092430,1705612076935,242.49739658,0.00021601,2]
[312092431,1705612081885,155.0,0.00021601,2]
[312092432,1705612084420,230.58874034,0.00021601,2]
[312092433,1705612085546,234.90330055,0.00021601,2]
[312092434,1705612086127,155.0,0.00021601,2]
[312092435,1705612088687,578.33965797,0.00021601,2]
[312092436,1705612096663,161.78624904,0.00021601,2]
[312092437,1705612099399,1036.76,0.0002128,2]
[312092438,1705612101557,234.90330055,0.00021601,2]
[312092439,1705612115153,179.0,0.00021318,2]
[312092440,1705612117078,162.2165362,0.00021601,2]
[312092441,1705612119163,1416.95405969,0.00021601,2]
[312092442,1705612123700,234.90330055,0.00021601,2]
[312092443,1705612138169,196.75901238,0.00021601,2]
[312092444,1705612138910,171.36,0.00021331,2]
[312092445,1705612139554,215.11040998,0.00021601,2]
[312092446,1705612141542,234.90330055,0.00021601,2]
[312092447,1705612142006,150.0,0.00021601,2]
[312092448,1705612142136,150.0,0.00021601,2]
[312092449,1705612145255,174.22213043,0.00021601,2]
[312092450,1705612147075,190.90927065,0.00021601,2]
[312092451,1705612147488,242.49739658,0.00021601,2]
[312092452,1705612147970,203.29975543,0.00021601,2]
[312092453,1705612148871,158.80709241,0.00021601,2]
[312092586,1705612157553,234.90330055,0.00021601,2]
[312092587,1705612166645,155.0,0.00021601,2]
[312092588,1705612171229,161.78624904,0.00021601,2]
[312092647,1705612175571,234.90330055,0.00021601,2]
[312092659,1705612189580,162.2165362,0.00021601,2]
[312092660,1705612204219,204.0,0.00021185,2]
[312092661,1705612205454,250.0,0.00021295,2]
[312092662,1705612211176,155.0,0.00021601,2]
[312092663,1705612213325,532.93571478,0.00021601,2]
[312092664,1705612217098,166.02,0.00021341,2]
[312092665,1705612219439,190.90927065,0.00021601,2]
[312092666,1705612225768,174.22213043,0.00021601,2]
[312092667,1705612227388,158.80709241,0.00021601,2]
[312092694,1705612232118,-289.95236148,0.00021602,2]
[312092695,1705612232129,-16473.74993559,0.00021602,2]
[312092697,1705612232139,-153.14,0.00021641,2]
[312092699,1705612232149,-886.9,0.00021644,2]
[312092701,1705612232160,-499.99,0.00021657,2]
[312092703,1705612232169,-730.33,0.00021669,2]
[312092705,1705612232178,-721.36,0.0002167,2]
[312092707,1705612232186,-717.39,0.00021673,2]
[312092709,1705612232195,-712.73,0.00021676,2]
[312092710,1705612232205,-165.75,0.00021678,2]
[312092712,1705612232214,-497.47,0.00021678,2]
[312092714,1705612232224,-734.97,0.00021687,2]
[312092716,1705612232233,-303.37,0.00021693,2]
[312092718,1705612232243,-517.12,0.00021698,2]
[312092720,1705612232252,-730.97,0.00021713,2]
[312092722,1705612232263,-716.87,0.00021716,2]
[312092724,1705612232273,-153.14,0.00021721,2]
[312092726,1705612232282,-153.14,0.00021801,2]
[312092728,1705612232291,-2917.4862,0.00021818,2]
[312092730,1705612232301,-303.37,0.00021862,2]
[312092732,1705612232312,-153.14,0.00021881,2]
[312092735,1705612232322,-1288.5476,0.00021895,2]
[312092737,1705612232332,-250.0,0.00021918,2]
[312092739,1705612232342,-10000.0,0.00021918,2]
[312092741,1705612232351,-153.14,0.00021961,2]
[312092743,1705612232360,-156.98434853,0.00021971,2]
[312092745,1705612232369,-171.36,0.00021971,2]
[312092746,1705612232378,-9165.81288708,0.00021995,2]
[312092748,1705612232386,-179.9,0.00022,2]
[312092750,1705612232396,-48.3843858,0.00022,3]
[312092753,1705612232410,-501.6156142,0.00022,3]
[312092755,1705612232419,-151.3243858,0.00022,2]
[312092757,1705612232434,-348.6756142,0.00022,2]
[312092759,1705612232443,-2780.53772112,0.00022,2]
[312092761,1705612232452,-523.99597425,0.00022027,2]
[312092763,1705612232464,-517.8880351,0.00022027,2]
[312092765,1705612232476,-303.37,0.0002203,2]
[312092767,1705612232485,-153.14,0.00022041,2]
[312092769,1705612232494,-677.91196499,0.00022078,2]
[312092771,1705612232506,-438.54494424,0.00022078,2]
[312092774,1705612232517,-418.21818727,0.00022078,2]
[312092776,1705612232528,-2603.44412139,0.00022102,2]
[312092778,1705612232541,-849.0264,0.00022102,2]
[312092779,1705612232555,-717.24099228,0.00022102,2]
[312092781,1705612232568,-3541.94354438,0.00022102,2]
[312092783,1705612232580,-302.28831023,0.00022102,2]
[312092785,1705612232590,-153.14,0.00022121,2]
[312092787,1705612232599,-150.93,0.00022127,2]
[312092788,1705612232609,-303.37,0.00022199,2]
[312092789,1705612232618,-153.14,0.00022201,2]
[312092790,1705612232627,-443.32,0.00022256,2]
[312092791,1705612232637,-153.14,0.00022281,2]
[312092792,1705612232646,-153.14,0.00022361,2]
[312092793,1705612232657,-303.37,0.00022368,2]
[312092794,1705612232666,-156.98434853,0.00022435,2]
[312092795,1705612232675,-153.14,0.00022441,2]
[312092796,1705612232683,-886.9,0.00022445,2]
[312092797,1705612232693,-153.14,0.00022521,2]
[312092798,1705612232702,-303.37,0.00022536,2]
[312092799,1705612232713,-153.14,0.00022601,2]
[312092800,1705612232722,-171.36,0.00022611,2]
[312092801,1705612232732,-303.37,0.00022705,2]
[312092802,1705612232742,-387.33360607,0.00022768,2]
[312092803,1705612232752,-155.0,0.00022768,2]
[312092804,1705612232763,-204.0,0.00022803,4]
[312092805,1705612232773,-800.0,0.00022816,2]
[312092806,1705612232782,-303.37,0.00022873,2]
[312092807,1705612232793,-155.40169113,0.00022883,2]
[312092808,1705612232802,-1669.7314,0.000229,2]
[312092809,1705612232827,-2347.73738032,0.000229,2]
[312092810,1705612232839,-156.98434853,0.000229,2]
[312092811,1705612232850,-157.90120161,0.000229,2]
[312092812,1705612232861,-327.02630446,0.000229,2]
[312092813,1705612232871,-2952.4442091,0.000229,2]
[312092814,1705612232880,-2328.74843214,0.000229,2]
[312092815,1705612232889,-177.6,0.00022942,2]
[312092816,1705612232898,-213.45346907,0.00022975,2]
[312092817,1705612232908,-263.32899145,0.00022997,2]
[312092818,1705612232918,-2900.9485508,0.00022997,2]
[312092819,1705612232928,-581.76600082,0.00022997,2]
[312092820,1705612232938,-155.0,0.00022997,2]
[312092821,1705612232947,-436.73061507,0.00022998,2]
[312092822,1705612232957,-302.15300619,0.00022998,2]
[312092823,1705612232968,-244.84553355,0.00022998,2]
[312092824,1705612232978,-155.0,0.00022998,2]
[312092825,1705612232987,-4245.70602795,0.00022998,2]
[312092826,1705612232998,-628.6804983,0.00022998,2]
[312092827,1705612233007,-310.08362313,0.00022998,2]
[312092828,1705612233017,-1714.07220603,0.00022998,2]
[312092829,1705612233026,-572.14,0.00022998,2]
[312092830,1705612233035,-628.37103352,0.00022998,2]
[312092831,1705612233044,-3327.03038204,0.00022998,2]
[312092832,1705612233054,-3855.4127161,0.00022998,2]
[312092833,1705612233063,-155.0,0.00022998,2]
[312092834,1705612233072,-196.80281516,0.00022998,2]
[312092835,1705612233081,-254.9255463,0.00022998,2]
[312092836,1705612233093,-1073.57869219,0.00022998,2]
[312092837,1705612233105,-5.7851823,0.00022998,2]
[312092838,1705612233114,-717.50839599,0.00022998,2]
[312092839,1705612233127,-1160.51223234,0.00022998,2]
[312092851,1705612238092,-621.99261507,0.00022998,2]
[312092852,1705612238104,-117.2800511,0.00022998,2]
[312092853,1705612238113,-943.8427212,0.00022998,2]
[312092854,1705612238125,-1374.34665686,0.00022998,2]
[312092855,1705612238134,-155.0,0.00022998,2]
[312092856,1705612238143,-155.0,0.00022998,2]
[312092857,1705612238152,-155.0,0.00022998,2]
[312092858,1705612238161,-324.01545072,0.00022998,2]
[312092859,1705612238173,-2280.99533429,0.00022998,2]
[312092860,1705612238182,-1201.80636557,0.00022998,2]
[312092861,1705612238191,-200.81745028,0.00022998,2]
[312092862,1705612238200,-348.71519846,0.00022998,2]
[312092863,1705612238209,-933.39743352,0.00022998,2]
[312092864,1705612238228,-204.40930052,0.00022998,2]
[312092865,1705612238238,-155.0,0.00022998,2]
[312092866,1705612238248,-155.0,0.00022998,2]
[312092867,1705612238257,-155.0,0.00022998,2]
[312092868,1705612238266,-155.0,0.00022998,2]
[312092869,1705612238275,-696.02705131,0.00022998,2]
[312092870,1705612238284,-155.0,0.00022998,2]
[312092871,1705612238294,-155.0,0.00022998,2]
[312092872,1705612238303,-155.0,0.00022998,2]
[312092873,1705612238313,-226.03253438,0.00022998,2]
[312092874,1705612238322,-155.0,0.00022998,2]
[312092875,1705612238331,-155.0,0.00022998,2]
[312092876,1705612238341,-155.0,0.00022998,2]
[312092877,1705612238350,-177.85048408,0.00022998,2]
[312092878,1705612238359,-269.58048443,0.00022998,2]
[312092879,1705612238369,-234.33508647,0.00022998,2]
[312092880,1705612238378,-155.0,0.00022998,2]
[312092881,1705612238388,-233.12709957,0.00022998,2]
[312092882,1705612238397,-15908.97477889,0.00022998,2]
[312092883,1705612238407,-202.69024443,0.00022998,2]
[312092884,1705612238418,-228.31585659,0.00022998,2]
[312092885,1705612238427,-217.97798028,0.00022998,2]
[312092886,1705612238437,-155.0,0.00022998,2]
[312092887,1705612238446,-230.58874034,0.00022998,2]
[312092888,1705612238455,-484.64530115,0.00022998,2]
[312092904,1705612238706,-215.11040998,0.00022998,2]
[312092906,1705612238717,-196.75901238,0.00022998,2]
[312092909,1705612238726,-242.49739658,0.00022998,2]
[312092911,1705612238735,-203.29975543,0.00022998,2]
[312092913,1705612238745,-155.0,0.00022998,2]
[312092915,1705612238754,-161.78624904,0.00022998,2]
[312092917,1705612238763,-162.15651449,0.00022998,2]
[312092919,1705612238772,-411.36312889,0.00022998,2]
[312092921,1705612238781,-155.0,0.00022998,2]
[312092922,1705612238790,-604.50828604,0.00022998,2]
[312092924,1705612238799,-190.90927065,0.00022998,2]
[312092926,1705612238809,-252.88442095,0.00022998,2]
[312092928,1705612238818,-3591.25488907,0.00022998,2]
[312092930,1705612238826,-171.83269668,0.00022998,2]
[312092932,1705612238835,-155.0,0.00022998,2]
[312092934,1705612238844,-155.0,0.00022998,2]
[312092936,1705612238853,-155.0,0.00022998,2]
[312092938,1705612238863,-842.86182891,0.00022998,2]
[312092941,1705612238872,-5441.65199568,0.00022998,2]
[312092943,1705612238881,-303.19299995,0.00022998,4]
[312092944,1705612238890,-543.09306325,0.00022998,2]
[312092946,1705612238898,-160.61277548,0.00022998,2]
[312092948,1705612238907,-1178.12872526,0.00022998,2]
[312092950,1705612238917,-473.12301771,0.00022998,2]
[312092953,1705612238926,-37006.37977109,0.00022998,2]
[312092955,1705612238935,-1591.72396744,0.00022998,2]
[312092957,1705612238945,-941.08515656,0.00022998,2]
[312092959,1705612238954,-1746.75479679,0.00022999,2]
[312092961,1705612238963,-155.0,0.00022999,2]
[312092963,1705612238972,-950.80267576,0.00022999,2]
[312092965,1705612238985,-12298.83057596,0.00022999,2]
[312092967,1705612238994,-150.01,0.00022999,2]
[312092969,1705612239004,-3296.21810704,0.00022999,2]
[312092971,1705612239013,-1745.0,0.00022999,2]
[312092973,1705612239023,-16369.38371325,0.00023,3]
[312092978,1705612239056,-4226.34605341,0.00023,3]
[312092980,1705612239067,-1592494.64492653,0.00023,3]
[312092982,1705612239077,-1598.67757128,0.00023,2]
[312092984,1705612239086,-3878961.39971917,0.00023,2]
[312092986,1705612239095,-348450.33231846,0.00023,2]
[312092988,1705612239107,-252.000007,0.00023,2]
[312092991,1705612239119,-1473.96425904,0.00023,2]
[312092993,1705612239130,-19931.3558955,0.00023,2]
[312092995,1705612239141,-2978.14036837,0.00023,2]
[312093002,1705612239196,-2640.88972985,0.00023,2]
[312093004,1705612239208,-251.70096473,0.00023,2]
[312093007,1705612239219,-251.6846348,0.00023,2]
[312093009,1705612239231,-4773.2288233,0.00023,2]
[312093011,1705612239241,-994.5929701,0.00023,2]
[312093013,1705612239252,-3170.93065347,0.00023,2]
[312093016,1705612239267,-4098.34,0.00023,2]
[312093019,1705612239291,-639.0403552,0.00023,2]
[312093022,1705612239301,-3362.12,0.00023,2]
[312093024,1705612239317,-1907.75411288,0.00023,2]
[312093027,1705612239329,-786.5464571,0.00023,2]
[312093029,1705612239341,-349.19474161,0.00023,2]
[312093031,1705612239353,-8190.40158375,0.00023,2]
[312093033,1705612239364,-92813.08910309,0.00023,2]
[312093036,1705612239375,-87883.18037562,0.00023,2]
[312093038,1705612239386,-3758.77712051,0.00023,2]
[312093040,1705612239397,-2207.63566738,0.00023,2]
[312093091,1705612240589,-24665.30405793,0.00023,2]
[312093095,1705612240648,-866.14233163,0.00023,2]
[312093096,1705612240659,-2665.755,0.00023,2]
[312093097,1705612240762,-657.0,0.00023,2]
[312093098,1705612240774,-500.0,0.00023,2]
[312093099,1705612240826,-12330.86472285,0.00023,2]
[312093100,1705612240838,-270.62471335,0.00023,2]
[312093101,1705612240851,-287.318,0.00023,2]
[312093102,1705612241492,-2470.71155995,0.00023,2]
[312093126,1705612243268,-326.95910468,0.000229,2]
[312093128,1705612243278,-23027.76537378,0.00023,2]
[312093131,1705612243296,-277.95641251,0.00023,2]
[312093135,1705612243326,-435.21808693,0.00023,2]
[312093136,1705612243386,-150.01,0.00022999,2]
[312093137,1705612243396,-268.79000183,0.00023,2]
[312093138,1705612243407,-608.58357846,0.00023,2]
[312093139,1705612243449,-6593.62489395,0.00023,2]
[312093140,1705612243465,-10450.45899999,0.00023,2]
[312093141,1705612243480,-3385.37201735,0.00023,2]
[312093142,1705612243492,-1622.46556932,0.00023,2]
[312093143,1705612243506,-1699.4523425,0.00023,2]
[312093144,1705612243518,-878.86801988,0.00023,2]
[312093146,1705612243575,-377121.12472731,0.00023,2]
[312093164,1705612246221,-3296.21810704,0.00022999,2]
[312093165,1705612246231,-158.7458962,0.00022999,2]
[312093166,1705612246240,-2237.5606869,0.00022999,2]
[312093167,1705612246249,-174.22213043,0.00022999,2]
[312093168,1705612246258,-2252.71197943,0.00023,2]
[312093169,1705612246313,-40953.0,0.00023,2]
[312093170,1705612246324,-1474.98574617,0.00023,2]
[312093171,1705612246351,-833.04272775,0.00023,2]
[312093172,1705612246362,-2240.24415519,0.00023,2]
[312093173,1705612246374,-12582.1600411,0.00023,2]
[312093174,1705612246385,-14048.30322436,0.00023,2]
[312093175,1705612246398,-481.79499997,0.00023,2]
[312093176,1705612246413,-348.21244715,0.00023,2]
[312093177,1705612246426,-679.51499957,0.00023,2]
[312093178,1705612246517,-3040.679,0.00023,2]
[312093179,1705612246529,-2716.79747923,0.00023,2]
[312093192,1705612250158,-151.0,0.00023,7]
[312093193,1705612250182,-160.103892,0.00023,7]
[312093194,1705612250203,-151.0,0.00023,7]
[312093195,1705612250224,-159.82983,0.00023,7]
[312093196,1705612250246,-238.995721,0.00023,7]
[312093197,1705612250269,-139.070557,0.00023,7]
[312093198,1705612256255,155.82902494,0.00021601,2]
[312093199,1705612256286,204.90330884,0.00021601,2]
[312093200,1705612261241,-11.929443,0.00023,7]
[312093201,1705612261263,-152.096852,0.00023,7]
[312093202,1705612264001,202.0,0.00021185,2]
[312093203,1705612265524,3701.70694178,0.00021601,2]
[312093204,1705612294032,205.0,0.00021185,2]
[312093205,1705612347375,599.16,0.00019955,2]
[312093228,1705612796045,13328.941297,0.0002,2]
[312093229,1705612879244,1273.89360077,0.0002,5]
[312093230,1705612880019,569.2,0.00019646,2]
[312093231,1705612971001,2000.0,0.00021515,2]
[312093232,1705613019612,222.98,0.00021541,2]
[312093233,1705613099093,167.1,0.00021529,2]
[312093234,1705613105677,279.14491656,0.00021601,2]
[312093235,1705613113889,1041.25837221,0.00021601,2]
[312093236,1705613117905,250.0,0.00021561,2]
[312093279,1705613187994,163.4,0.00021557,2]
[312093301,1705613255095,588.95,0.00021521,2]
[312093302,1705613284269,204.0,0.0002142,2]
[312093303,1705613298570,743.58,0.00021528,2]
[312093304,1705613324759,200.0,0.00021556,2]
[312093305,1705613329152,201.9,0.0002153,2]
[312093306,1705613339329,162.44,0.00021508,10]
[312093307,1705613340326,456.75,0.00021508,2]
[312093308,1705613368033,200.38,0.00021508,2]
[312093309,1705613394885,540.74,0.00019623,2]
[312093310,1705613399513,2000.0,0.00021529,2]
[312093311,1705613431372,200.0,0.00021517,2]
[312093347,1705613434230,-190.90927065,0.0002162,2]
[312093348,1705613434239,-155.0,0.0002162,2]
[312093349,1705613434249,-731.69,0.00021621,2]
[312093350,1705613434258,-728.93,0.00021628,2]
[312093351,1705613434267,-532.14,0.00021644,2]
[312093352,1705613434276,-160.65,0.00021718,2]
[312093353,1705613434285,-411.05,0.00021728,2]
[312093354,1705613434294,-177.6,0.00021729,2]
[312093355,1705613434303,-150.0,0.0002174,2]
[312093356,1705613434313,-300.0,0.0002174,2]
[312093357,1705613434322,-6387.23,0.00021741,2]
[312093358,1705613434331,-700.36,0.00021741,2]
[312093359,1705613434340,-159.81852175,0.00021745,2]
[312093360,1705613434349,-999.99,0.00021745,2]
[312093361,1705613434358,-517.26,0.00021771,2]
[312093362,1705613434367,-1658.07,0.00021771,2]
[312093363,1705613434376,-150.99,0.00021772,2]
[312093364,1705613434385,-970.18,0.00021772,2]
[312093365,1705613434394,-755.24,0.00021772,2]
[312093366,1705613434403,-923.28,0.00021772,2]